bitfinex/quotes_SOLUSD_20251120
["timestamp","ask_amount","ask_price","bid_price","bid_amount"]
[1763663810127,9.78882769,133.8,133.77,0.2]
[1763663810564,0.68,133.83,133.79,12.13591541]
[1763663810719,9.78882769,133.82,133.77,12.33591541]
[1763663811252,9.78882769,133.8,133.77,0.2]
[1763663811820,0.68,133.79,133.77,0.2]
[1763663812322,9.78882769,133.78,133.77,0.2]
[1763663812733,10.46882769,133.78,133.77,0.2]
[1763663817526,18.23853701,133.78,133.77,0.2]
[1763663817733,36.35949701,133.78,133.77,0.2]
[1763663818130,59.78882769,133.77,133.76,0.2]
[1763663818345,9.78882769,133.74,133.73,0.2]
[1763663818727,10.46882769,133.74,133.73,0.2]
[1763663818961,18.23853701,133.74,133.73,0.2]
[1763663820760,9.78882769,133.67,133.62,0.7]
[1763663820929,18.12096,133.69,133.62,0.7]
[1763663820930,50.0,133.71,133.62,0.7]
[1763663821132,9.78882769,133.7,133.64,7.76970932]
[1763663821332,9.78882769,133.7,133.62,0.7]
[1763663821333,50.0,133.73,133.68,7.76970932]
[1763663821565,9.78882769,133.72,133.68,7.76970932]
[1763663821746,9.78882769,133.72,133.68,8.46970932]
[1763663822153,9.78882769,133.72,133.68,0.7]
[1763663822462,9.78882769,133.72,133.68,8.46970932]
[1763663822633,8.44970932,133.74,133.69,7.76970932]
[1763663822634,9.78882769,133.74,133.69,7.76970932]
[1763663822832,17.55853701,133.74,133.68,8.46970932]
[1763663823241,7.76970932,133.73,133.68,0.7]
[1763663823464,50.0,133.71,133.68,0.7]
[1763663823843,9.78882769,133.72,133.68,8.46970932]
[1763663824042,9.78882769,133.72,133.68,0.7]
[1763663824270,9.78882769,133.72,133.68,8.46970932]
[1763663824563,9.78882769,133.7,133.65,0.7]
[1763663824762,17.55853701,133.7,133.65,7.76970932]
[1763663825064,18.23853701,133.7,133.65,8.46970932]
[1763663825463,18.23853701,133.7,133.62,18.12096]
[1763663825464,18.12096,133.72,133.67,7.76970932]
[1763663825774,9.78882769,133.72,133.68,7.76970932]
[1763663825941,50.0,133.73,133.69,7.76970932]
[1763663826482,3.91008725,133.75,133.72,7.76970932]
[1763663826640,64.04897141,133.84,133.74,7.76970932]
[1763663826641,50.0,133.82,133.74,7.76970932]
[1763663826854,50.0,133.82,133.76,7.76970932]
[1763663826855,61.67790418,133.82,133.76,7.76970932]
[1763663827093,57.76970932,133.8,133.75,7.76970932]
[1763663827294,7.76970932,133.79,133.74,7.76970932]
[1763663827598,68.12096,133.8,133.74,7.76970932]
[1763663827883,3.90819486,133.82,133.78,7.76970932]
[1763663827884,53.90819486,133.82,133.78,7.76970932]
[1763663828074,53.90819486,133.82,133.75,0.7]
[1763663828267,61.67790418,133.82,133.77,7.76970932]
[1763663828590,62.35790418,133.82,133.77,8.46970932]
[1763663828790,9.78882769,133.81,133.77,0.7]
[1763663828981,9.78882769,133.81,133.77,8.46970932]
[1763663829670,3.90819486,133.82,133.78,0.7]
[1763663829986,3.90819486,133.82,133.78,8.46970932]
[1763663830513,9.78882769,133.79,133.74,0.7]
[1763663830787,53.90819486,133.82,133.77,7.76970932]
[1763663830990,9.71543802,133.87,133.81,7.76970932]
[1763663830991,50.0,133.86,133.81,7.76970932]
[1763663831200,50.68,133.86,133.82,7.76970932]
[1763663831485,57.76970932,133.84,133.75,1.84]
[1763663831686,50.0,133.82,133.78,7.76970932]
[1763663831851,9.78882769,133.81,133.78,7.76970932]
[1763663832259,9.78882769,133.81,133.79,8.46970932]
[1763663832461,18.23853701,133.81,133.75,1.84]
[1763663832666,9.78882769,133.79,133.75,1.84]
[1763663832890,50.0,133.8,133.77,7.76970932]
[1763663834197,3.90684516,133.85,133.79,7.76970932]
[1763663834402,3.90684516,133.85,133.82,7.76970932]
[1763663834700,50.0,133.86,133.82,7.76970932]
[1763663834903,1.84,133.89,133.83,8.46970932]
[1763663834904,53.90633561,133.88,133.83,8.46970932]
[1763663835105,53.90633561,133.88,133.84,7.76970932]
[1763663835305,54.58633561,133.88,133.84,7.76970932]
[1763663835686,9.78882769,133.87,133.83,8.46970932]
[1763663836095,9.78882769,133.85,133.82,7.76970932]
[1763663836305,9.78882769,133.85,133.81,7.76970932]
[1763663836494,3.90633561,133.88,133.77,0.7]
[1763663836495,9.78882769,133.83,133.77,0.7]
[1763663836700,9.78882769,133.83,133.79,7.76970932]
[1763663836891,9.78882769,133.83,133.79,8.46970932]
[1763663837089,0.68,133.82,133.78,7.76970932]
[1763663837292,9.78882769,133.81,133.76,7.76970932]
[1763663837497,9.78882769,133.79,133.76,0.7]
[1763663837701,50.0,133.8,133.77,7.76970932]
[1763663837883,57.76970932,133.84,133.79,7.76970932]
[1763663838083,9.78882769,133.83,133.79,7.76970932]
[1763663838310,9.78882769,133.83,133.79,8.46970932]
[1763663838826,9.78882769,133.85,133.8,0.7]
[1763663839125,9.78882769,133.8,133.75,1.84]
[1763663839304,9.78882769,133.8,133.75,9.60970932]
[1763663839488,9.78882769,133.8,133.76,8.46970932]
[1763663839898,112.38882769,133.8,133.76,8.46970932]
[1763663840113,112.38882769,133.8,133.76,0.7]
[1763663840301,59.78882769,133.79,133.74,0.7]
[1763663840503,59.78882769,133.79,133.74,7.76970932]
[1763663840812,9.78882769,133.77,133.72,0.7]
[1763663841000,9.78882769,133.77,133.74,7.76970932]
[1763663841308,9.78882769,133.79,133.76,7.76970932]
[1763663841684,9.78882769,133.79,133.75,8.46970932]
[1763663842097,1.84,133.82,133.78,7.76970932]
[1763663842098,9.78882769,133.82,133.78,7.76970932]
[1763663842402,9.78882769,133.82,133.79,7.76970932]
[1763663842617,9.78882769,133.82,133.77,0.7]
[1763663842914,9.78882769,133.82,133.78,7.76970932]
[1763663843120,9.78882769,133.82,133.79,7.76970932]
[1763663843317,0.67,133.86,133.81,7.76970932]
[1763663843522,9.78882769,133.85,133.81,7.76970932]
[1763663844134,9.78882769,133.84,133.8,7.76970932]
[1763663844302,10.45882769,133.84,133.79,7.76970932]
[1763663844508,10.45882769,133.84,133.78,7.76970932]
[1763663844509,9.78882769,133.82,133.78,7.76970932]
[1763663844909,9.78882769,133.82,133.79,7.76970932]
[1763663845111,9.78882769,133.82,133.78,0.7]
[1763663845429,9.78882769,133.82,133.79,7.76970932]
[1763663846046,50.0,133.83,133.81,18.12096]
[1763663846330,50.0,133.83,133.79,25.89066932]
[1763663846529,50.0,133.83,133.77,0.7]
[1763663846715,102.6,133.82,133.79,7.76970932]
[1763663847130,102.6,133.82,133.79,8.46970932]
[1763663847441,102.6,133.82,133.81,7.76970932]
[1763663847604,102.6,133.82,133.81,8.46970932]
[1763663847805,102.6,133.82,133.81,7.76970932]
[1763663848113,102.6,133.82,133.78,7.76970932]
[1763663848314,102.6,133.81,133.78,8.46970932]
[1763663848514,102.6,133.81,133.77,7.76970932]
[1763663848717,102.6,133.81,133.79,7.76970932]
[1763663848918,102.6,133.81,133.79,8.46970932]
[1763663849120,102.6,133.81,133.79,0.7]
[1763663849309,102.6,133.81,133.79,8.46970932]
[1763663850238,102.6,133.81,133.8,0.72]
[1763663850419,102.6,133.81,133.8,8.48970932]
[1763663850620,101.88,133.81,133.8,8.48970932]
[1763663850810,0.71,133.9,133.83,18.12096]
[1763663851011,67.55853701,133.88,133.82,1.84]
[1763663851339,67.55853701,133.88,133.79,18.84096]
[1763663851340,9.78882769,133.84,133.8,7.76970932]
[1763663851830,10.49882769,133.84,133.8,7.76970932]
[1763663852242,9.78882769,133.82,133.78,7.76970932]
[1763663852414,10.49882769,133.82,133.77,9.60970932]
[1763663852609,10.49882769,133.82,133.75,8.48970932]
[1763663852610,9.78882769,133.8,133.75,8.48970932]
[1763663852819,10.49882769,133.8,133.75,7.76970932]
[1763663853142,10.49882769,133.8,133.76,8.48970932]
[1763663855034,10.49882769,133.8,133.77,7.76970932]
[1763663855441,9.78882769,133.78,133.74,1.84]
[1763663855741,9.78882769,133.76,133.7,2.56]
[1763663855926,50.0,133.77,133.74,7.76970932]
[1763663856133,50.71,133.81,133.76,7.76970932]
[1763663856432,7.76970932,133.83,133.79,7.76970932]
[1763663856433,10.49882769,133.82,133.79,7.76970932]
[1763663857034,0.71,133.81,133.79,7.76970932]
[1763663857210,9.78882769,133.8,133.78,7.76970932]
[1763663857946,10.49882769,133.8,133.78,7.76970932]
[1763663858642,10.49882769,133.8,133.77,7.76970932]
[1763663859641,9.78882769,133.8,133.77,7.76970932]
[1763663859847,10.49882769,133.8,133.77,7.76970932]
[1763663860010,50.0,133.81,133.78,7.76970932]
[1763663860217,9.78882769,133.82,133.79,7.76970932]
[1763663860555,10.49882769,133.82,133.77,0.72]
[1763663860715,10.49882769,133.82,133.79,7.76970932]
[1763663861157,50.0,133.83,133.81,7.76970932]
[1763663861321,9.78882769,133.84,133.81,7.76970932]
[1763663861644,9.78882769,133.82,133.79,7.76970932]
[1763663862141,9.78882769,133.82,133.78,7.76970932]
[1763663862142,0.71,133.81,133.78,7.76970932]
[1763663862346,9.78882769,133.8,133.77,7.76970932]
[1763663862540,9.78882769,133.8,133.78,7.76970932]
[1763663862732,10.49882769,133.8,133.78,7.76970932]
[1763663862935,10.49882769,133.8,133.77,7.76970932]
[1763663863116,0.71,133.79,133.77,7.76970932]
[1763663863316,10.49882769,133.8,133.77,7.76970932]
[1763663863519,9.78882769,133.8,133.78,7.76970932]
[1763663863727,102.6,133.81,133.79,7.76970932]
[1763663863920,102.6,133.81,133.8,7.76970932]
[1763663870714,112.38882769,133.8,133.71,0.67]
[1763663870916,17.55853701,133.78,133.73,7.76970932]
[1763663871114,9.78882769,133.76,133.73,7.76970932]
[1763663871338,9.78882769,133.76,133.72,7.76970932]
[1763663871645,10.49882769,133.76,133.73,7.76970932]
[1763663871848,9.78882769,133.78,133.74,7.76970932]
[1763663872252,9.78882769,133.76,133.73,7.76970932]
[1763663872643,0.71,133.75,133.73,7.76970932]
[1763663872953,0.71,133.75,133.71,7.76970932]
[1763663873137,0.71,133.75,133.7,1.84]
[1763663873138,9.78882769,133.74,133.7,1.84]
[1763663873338,9.78882769,133.74,133.67,7.76970932]
[1763663873339,59.78882769,133.72,133.67,7.76970932]
[1763663873536,9.78882769,133.71,133.68,7.76970932]
[1763663873853,9.78882769,133.71,133.67,7.76970932]
[1763663874033,10.49882769,133.71,133.67,7.76970932]
[1763663875324,0.71,133.74,133.7,7.76970932]
[1763663875593,10.49882769,133.74,133.71,7.76970932]
[1763663876846,10.49882769,133.74,133.71,12.18149206]
[1763663877551,10.49882769,133.74,133.68,2.51]
[1763663877552,10.49882769,133.74,133.72,12.18149206]
[1763663878233,10.49882769,133.74,133.71,12.18149206]
[1763663878856,10.49882769,133.74,133.69,0.67]
[1763663880449,0.71,133.73,133.69,0.67]
[1763663880648,102.6,133.73,133.69,0.67]
[1763663880866,102.6,133.73,133.72,12.18149206]
[1763663881034,102.6,133.73,133.69,0.67]
[1763663881238,102.6,133.73,133.72,12.18149206]
[1763663881864,9.78882769,133.78,133.72,12.85149206]
[1763663882165,0.71,133.77,133.74,12.18149206]
[1763663882465,50.0,133.78,133.75,12.18149206]
[1763663882776,0.71,133.77,133.75,12.18149206]
[1763663883467,0.71,133.77,133.74,12.18149206]
[1763663883666,59.78882769,133.76,133.72,1.84]
[1763663883970,0.71,133.75,133.72,14.02149206]
[1763663884139,18.12096,133.8,133.74,12.18149206]
[1763663884140,0.71,133.8,133.74,12.18149206]
[1763663884341,10.49882769,133.79,133.76,12.18149206]
[1763663884576,10.49882769,133.79,133.72,1.84]
[1763663884577,9.78882769,133.76,133.72,1.84]
[1763663884745,9.78882769,133.76,133.72,14.02149206]
[1763663884746,59.78882769,133.76,133.72,14.02149206]
[1763663884946,0.71,133.75,133.73,12.18149206]
[1763663885569,0.71,133.75,133.72,1.84]
[1763663885570,50.71,133.8,133.74,12.85149206]
[1763663885780,102.6,133.79,133.77,12.18149206]
[1763663885943,102.6,133.79,133.72,1.84]
[1763663885944,59.78882769,133.78,133.72,1.84]
[1763663886150,102.6,133.77,133.76,12.18149206]
[1763663886840,102.6,133.77,133.73,0.67]
[1763663887040,102.6,133.77,133.75,12.18149206]
[1763663887041,103.31,133.77,133.75,12.18149206]
[1763663887241,102.6,133.77,133.76,12.18149206]
[1763663888447,102.6,133.77,133.75,12.18149206]
[1763663888868,102.6,133.77,133.76,12.18149206]
[1763663889065,103.31,133.77,133.75,12.18149206]
[1763663889780,0.71,133.76,133.74,12.18149206]
[1763663890360,102.6,133.77,133.75,12.18149206]
[1763663890682,103.31,133.77,133.75,12.18149206]
[1763663890981,102.6,133.77,133.76,12.18149206]
[1763663891158,102.6,133.77,133.75,12.18149206]
[1763663891353,102.6,133.77,133.76,12.18149206]
[1763663893567,102.6,133.77,133.76,12.85149206]
[1763663895457,102.6,133.77,133.69,1.99999999]
[1763663895677,103.31,133.77,133.75,12.18149206]
[1763663895885,0.71,133.76,133.73,12.18149206]
[1763663896187,0.71,133.76,133.72,1.84]
[1763663896188,162.38882769,133.75,133.7,12.18149206]
[1763663896371,162.38882769,133.75,133.65,12.38149206]
[1763663896372,59.78882769,133.73,133.66,0.67]
[1763663896571,0.71,133.72,133.68,12.18149206]
[1763663897681,9.78882769,133.71,133.67,12.18149206]
[1763663897890,9.78882769,133.71,133.66,1.84]
[1763663898189,0.71,133.7,133.66,12.18149206]
[1763663899065,0.71,133.7,133.67,12.18149206]
[1763663899268,0.71,133.7,133.68,12.18149206]
[1763663899454,0.71,133.7,133.65,0.2]
[1763663899455,0.71,133.72,133.69,12.18149206]
[1763663899850,0.71,133.72,133.65,12.38149206]
[1763663899851,9.78882769,133.69,133.65,12.38149206]
[1763663900150,9.78882769,133.69,133.65,0.2]
[1763663900351,0.66,133.68,133.66,12.18149206]
[1763663900550,3.83999999,133.74,133.65,0.2]
[1763663900551,50.0,133.73,133.67,12.88149206]
[1763663900751,9.78882769,133.75,133.68,1.84]
[1763663901052,0.66,133.76,133.73,12.18149206]
[1763663901256,0.66,133.76,133.74,12.18149206]
[1763663901563,3.90912096,133.77,133.72,1.84]
[1763663901767,3.90912096,133.77,133.75,12.18149206]
[1763663901978,3.90912096,133.77,133.74,12.18149206]
[1763663901979,0.66,133.77,133.74,12.18149206]
[1763663902361,0.66,133.77,133.75,12.18149206]
[1763663902563,0.66,133.77,133.72,2.54]
[1763663902875,0.66,133.77,133.75,12.18149206]
[1763663903071,3.90893382,133.79,133.76,12.18149206]
[1763663903383,4.56893382,133.79,133.76,12.18149206]
[1763663903684,10.44882769,133.78,133.72,1.84]
[1763663903895,50.66,133.8,133.74,0.7]
[1763663904093,50.66,133.8,133.77,12.18149206]
[1763663904382,50.66,133.8,133.72,1.84]
[1763663904383,10.44882769,133.79,133.76,12.18149206]
[1763663904759,0.66,133.78,133.76,12.18149206]
[1763663905359,0.66,133.78,133.77,12.18149206]
[1763663905569,0.66,133.78,133.76,12.18149206]
[1763663906077,9.78882769,133.77,133.74,12.18149206]
[1763663906276,0.66,133.76,133.74,12.18149206]
[1763663906582,9.78882769,133.77,133.72,1.84]
[1763663906583,152.6,133.8,133.75,12.88149206]
[1763663906786,153.26,133.8,133.77,12.18149206]
[1763663907084,3.90819486,133.81,133.79,12.18149206]
[1763663907271,0.66,133.83,133.8,12.18149206]
[1763663908108,0.66,133.83,133.74,12.18149206]
[1763663908109,9.78882769,133.8,133.72,0.7]
[1763663908278,9.78882769,133.76,133.71,1.84]
[1763663908464,9.78882769,133.76,133.73,12.18149206]
[1763663908661,10.44882769,133.76,133.71,1.84]
[1763663908968,10.44882769,133.76,133.73,12.18149206]
[1763663910408,0.71,133.75,133.71,1.84]
[1763663910587,0.71,133.75,133.72,12.18149206]
[1763663912307,0.71,133.75,133.71,1.84]
[1763663912521,0.71,133.75,133.71,14.02149206]
[1763663912882,9.78882769,133.74,133.71,1.84]
[1763663913119,9.78882769,133.71,133.65,0.2]
[1763663913288,71.97031975,133.69,133.65,0.2]
[1763663913600,59.78882769,133.69,133.65,12.38149206]
[1763663913803,0.71,133.74,133.68,12.18149206]
[1763663913995,50.71,133.77,133.73,12.18149206]
[1763663914202,9.78882769,133.76,133.74,12.18149206]
[1763663914503,0.71,133.75,133.72,12.18149206]
[1763663915402,0.71,133.75,133.73,12.18149206]
[1763663915707,9.78882769,133.76,133.71,0.72]
[1763663915899,9.78882769,133.76,133.72,12.18149206]
[1763663916107,50.0,133.79,133.75,12.18149206]
[1763663916295,50.0,133.81,133.78,12.18149206]
[1763663916613,50.0,133.81,133.78,12.90149206]
[1763663916815,3.90741334,133.84,133.8,12.18149206]
[1763663916983,3.90741334,133.84,133.81,12.18149206]
[1763663917190,3.90741334,133.84,133.83,12.18149206]
[1763663917498,18.12096,133.82,133.78,1.82]
[1763663917699,18.12096,133.82,133.79,12.18149206]
[1763663918012,53.90772256,133.83,133.8,12.18149206]
[1763663918881,3.90772256,133.83,133.81,12.90149206]
[1763663919082,3.90772256,133.83,133.81,0.72]
[1763663919286,3.90772256,133.83,133.82,12.90149206]
[1763663919710,68.12096,133.86,133.82,12.90149206]
[1763663920008,10.49882769,133.85,133.79,2.54]
[1763663920317,10.49882769,133.85,133.81,12.18149206]
[1763663920689,10.49882769,133.85,133.81,12.90149206]
[1763663921099,9.78882769,133.85,133.82,12.18149206]
[1763663921487,0.71,133.85,133.82,12.18149206]
[1763663921798,0.71,133.85,133.79,2.54]
[1763663921799,72.02790124,133.86,133.8,0.72]
[1763663921995,59.78882769,133.84,133.79,12.18149206]
[1763663922197,18.12096,133.8,133.74,0.72]
[1763663922399,9.78882769,133.81,133.77,12.18149206]
[1763663922908,0.71,133.8,133.77,12.18149206]
[1763663923113,0.71,133.8,133.74,0.72]
[1763663923290,0.71,133.8,133.77,12.18149206]
[1763663923492,50.71,133.8,133.76,12.18149206]
[1763663924693,0.71,133.79,133.73,1.82]
[1763663924910,0.71,133.79,133.75,12.18149206]
[1763663925529,0.71,133.79,133.74,12.18149206]
[1763663925690,12.89149206,133.79,133.74,12.18149206]
[1763663925888,30.30245206,133.77,133.72,12.18149206]
[1763663926229,21.97031975,133.76,133.71,12.90149206]
[1763663926395,22.68031975,133.76,133.71,12.90149206]
[1763663926823,0.71,133.75,133.71,12.18149206]
[1763663927310,0.71,133.75,133.72,12.90149206]
[1763663927311,102.6,133.75,133.72,12.90149206]
[1763663927826,103.31,133.75,133.7,1.82]
[1763663927995,102.6,133.75,133.71,12.90149206]
[1763663928615,102.6,133.75,133.72,12.18149206]
[1763663929805,18.12096,133.76,133.74,12.18149206]
[1763663930032,102.6,133.75,133.73,12.90149206]
[1763663930689,102.6,133.75,133.74,12.18149206]
[1763663931200,50.0,133.81,133.74,12.84149206]
[1763663931420,50.0,133.81,133.7,11.60882769]
[1763663931421,50.0,133.79,133.73,0.66]
[1763663931723,9.78882769,133.78,133.74,12.18149206]
[1763663931937,9.78882769,133.76,133.7,2.48]
[1763663932122,9.78882769,133.76,133.71,12.18149206]
[1763663932648,10.48882769,133.76,133.71,12.84149206]
[1763663932795,10.48882769,133.76,133.72,12.18149206]
[1763663932992,50.0,133.77,133.74,12.18149206]
[1763663933203,18.12096,133.8,133.75,12.18149206]
[1763663933204,50.0,133.8,133.75,12.18149206]
[1763663933405,50.7,133.8,133.75,12.84149206]
[1763663933596,50.7,133.8,133.76,12.18149206]
[1763663933820,50.7,133.8,133.76,12.84149206]
[1763663934407,50.0,133.8,133.76,12.84149206]
[1763663934941,62.18149206,133.82,133.77,12.84149206]
[1763663935101,50.0,133.84,133.8,12.18149206]
[1763663935637,50.0,133.84,133.81,12.18149206]
[1763663935806,50.7,133.84,133.8,12.18149206]
[1763663936155,50.7,133.84,133.78,2.48]
[1763663936305,50.7,133.84,133.8,12.18149206]
[1763663936822,50.7,133.84,133.8,7.76439997]
[1763663937607,18.12096,133.79,133.73,2.48]
[1763663937806,120.72096,133.79,133.74,0.66]
[1763663938025,120.72096,133.79,133.75,7.76439997]
[1763663938325,121.42096,133.79,133.75,7.76439997]
[1763663939241,120.72096,133.79,133.75,0.66]
[1763663939533,120.72096,133.79,133.76,7.76439997]
[1763663939923,102.6,133.79,133.76,7.76439997]
[1763663940509,103.3,133.79,133.74,0.66]
[1763663940707,18.12096,133.81,133.78,7.76439997]
[1763663940912,9.78882769,133.83,133.79,7.76439997]
[1763663941122,50.0,133.79,133.75,7.76439997]
[1763663941421,50.0,133.79,133.73,0.66]
[1763663941622,50.0,133.79,133.75,7.76439997]
[1763663941932,68.12096,133.81,133.78,7.76439997]
[1763663942129,50.0,133.81,133.78,7.76439997]
[1763663942626,50.7,133.81,133.78,7.76439997]
[1763663942816,9.78882769,133.78,133.71,18.78096]
[1763663943015,9.78882769,133.78,133.73,7.76439997]
[1763663943238,18.25322766,133.78,133.73,7.76439997]
[1763663943409,18.25322766,133.78,133.73,8.42439997]
[1763663943933,58.46439997,133.77,133.72,7.76439997]
[1763663944118,7.76439997,133.73,133.68,7.76439997]
[1763663944318,7.76439997,133.73,133.68,0.66]
[1763663944638,8.46439997,133.72,133.67,7.76439997]
[1763663944837,0.7,133.72,133.67,7.76439997]
[1763663945017,57.76439997,133.73,133.68,8.42439997]
[1763663945523,54.61047851,133.73,133.69,8.42439997]
[1763663945907,54.61047851,133.73,133.69,7.76439997]
[1763663946838,11.60882769,133.76,133.7,7.76439997]
[1763663946839,58.46439997,133.75,133.7,7.76439997]
[1763663947229,0.7,133.74,133.7,7.76439997]
[1763663947421,8.46439997,133.74,133.69,8.42439997]
[1763663947638,0.7,133.73,133.69,8.42439997]
[1763663947942,0.7,133.73,133.7,7.76439997]
[1763663948159,0.7,133.73,133.69,8.42439997]
[1763663948436,0.7,133.73,133.69,7.76439997]
[1763663948806,17.55322766,133.72,133.67,7.76439997]
[1763663949240,0.7,133.71,133.65,2.68]
[1763663949445,0.7,133.71,133.67,7.76439997]
[1763663949611,0.7,133.71,133.66,0.66]
[1763663949811,0.7,133.71,133.67,7.76439997]
[1763663950239,9.78882769,133.71,133.67,7.76439997]
[1763663950825,9.78882769,133.71,133.64,1.82]
[1763663951018,9.78882769,133.71,133.67,7.76439997]
[1763663951443,0.7,133.7,133.66,7.76439997]
[1763663952258,102.6,133.72,133.69,7.76439997]
[1763663952544,102.6,133.72,133.7,7.76439997]
[1763663952918,3.91013537,133.75,133.71,7.76439997]
[1763663953249,0.7,133.78,133.74,7.76439997]
[1763663953460,18.82096,133.78,133.74,7.76439997]
[1763663953629,0.7,133.78,133.74,7.76439997]
[1763663954235,0.7,133.78,133.75,7.76439997]
[1763663954445,0.7,133.78,133.74,7.76439997]
[1763663954633,8.46439997,133.78,133.74,7.76439997]
[1763663954840,0.7,133.78,133.71,18.12096]
[1763663955024,0.7,133.78,133.74,7.76439997]
[1763663955226,59.78882769,133.77,133.73,7.76439997]
[1763663955428,67.55322766,133.77,133.72,7.76439997]
[1763663955735,0.7,133.76,133.72,7.76439997]
[1763663956543,0.7,133.76,133.73,7.76439997]
[1763663956861,3.90929452,133.79,133.75,7.76439997]
[1763663957319,0.7,133.78,133.75,7.76439997]
[1763663959137,50.0,133.83,133.77,7.76439997]
[1763663959336,8.46439997,133.85,133.82,7.76439997]
[1763663959337,0.7,133.85,133.82,7.76439997]
[1763663959928,18.82096,133.85,133.73,1.82]
[1763663960234,25.88535997,133.83,133.79,7.76439997]
[1763663960638,25.88535997,133.83,133.75,18.12096]
[1763663960639,18.80096,133.83,133.8,7.76439997]
[1763663961351,53.90748019,133.86,133.81,7.76439997]
[1763663961562,0.68,133.85,133.81,7.76439997]
[1763663961862,18.80096,133.85,133.78,0.65]
[1763663962065,18.80096,133.85,133.82,7.76439997]
[1763663962362,10.46882769,133.87,133.84,7.76439997]
[1763663962860,0.68,133.86,133.83,7.76439997]
[1763663963432,0.68,133.86,133.82,7.76439997]
[1763663963954,9.78882769,133.85,133.82,7.76439997]
[1763663964327,0.68,133.84,133.81,7.76439997]
[1763663964527,0.68,133.84,133.78,2.47]
[1763663964765,0.68,133.84,133.81,7.76439997]
[1763663965058,0.68,133.84,133.82,7.76439997]
[1763663965267,0.68,133.84,133.78,2.47]
[1763663965472,0.68,133.84,133.81,7.76439997]
[1763663965935,9.78882769,133.83,133.8,7.76439997]
[1763663966132,9.78882769,133.83,133.76,7.76439997]
[1763663966133,0.68,133.82,133.75,0.65]
[1763663966361,8.44439997,133.82,133.7,9.78882769]
[1763663966660,9.78882769,133.81,133.78,7.76439997]
[1763663966953,17.55322766,133.79,133.74,7.76439997]
[1763663967130,102.6,133.78,133.74,7.76439997]
[1763663967331,111.04439997,133.78,133.71,0.65]
[1763663967530,111.04439997,133.78,133.74,7.76439997]
[1763663967763,111.04439997,133.78,133.71,0.65]
[1763663967966,103.28,133.78,133.74,7.76439997]
[1763663968472,113.06882769,133.77,133.72,7.76439997]
[1763663968635,113.06882769,133.77,133.74,7.76439997]
[1763663968835,113.06882769,133.77,133.73,7.76439997]
[1763663969036,120.83322766,133.77,133.73,7.76439997]
[1763663969252,120.83322766,133.77,133.7,1.82]
[1763663969253,9.78882769,133.75,133.72,7.76439997]
[1763663969440,9.78882769,133.75,133.7,1.82]
[1763663969635,0.68,133.74,133.7,9.58439997]
[1763663970071,0.68,133.74,133.71,7.76439997]
[1763663970647,9.78882769,133.73,133.69,7.76439997]
[1763663970971,0.69,133.72,133.7,7.76439997]
[1763663971537,0.69,133.72,133.67,18.12096]
[1763663971760,0.69,133.72,133.68,7.76439997]
[1763663971963,9.78882769,133.69,133.65,7.76439997]
[1763663972334,9.78882769,133.69,133.59,26.53832966]
[1763663972335,7.76439997,133.66,133.59,4.11076354]
[1763663972571,59.78882769,133.65,133.61,7.76439997]
[1763663972867,0.69,133.64,133.6,7.76439997]
[1763663973250,8.45439997,133.64,133.59,0.2]
[1763663973572,67.55322766,133.61,133.59,0.2]
[1763663973733,9.78882769,133.59,133.56,0.2]
[1763663973936,0.69,133.58,133.56,0.2]
[1763663974159,50.0,133.57,133.56,0.2]
[1763663974668,50.69,133.57,133.56,0.2]
[1763663975440,50.0,133.66,133.59,18.12096]
[1763663975765,58.45439997,133.66,133.61,7.76439997]
[1763663976066,10.47882769,133.65,133.61,7.76439997]
[1763663976480,0.69,133.64,133.58,0.68]
[1763663976638,9.78882769,133.63,133.56,18.32096]
[1763663976979,9.78882769,133.63,133.59,7.76439997]
[1763663977154,10.47882769,133.63,133.57,0.68]
[1763663977344,10.47882769,133.63,133.6,7.76439997]
[1763663977540,10.47882769,133.63,133.59,7.76439997]
[1763663977775,9.78882769,133.61,133.59,7.76439997]